bitfinex/quotes_ETHUSD_20220109
["timestamp","ask_amount","ask_price","bid_price","bid_amount"]
[1641719163120,4.6881,3117.2,3117.1,2.13670704]
[1641719163322,4.6881,3117.2,3117.1,2.17190042]
[1641719164323,4.6881,3117.2,3117.0,2.88071332]
[1641719164722,4.6881,3117.2,3117.1,1.60559241]
[1641719165124,4.6881,3117.2,3117.1,2.12945486]
[1641719165328,4.6881,3117.2,3117.1,3.12945486]
[1641719165724,4.6881,3117.2,3117.1,17.93504727]
[1641719166564,4.6881,3117.2,3117.1,16.32945486]
[1641719167168,4.6881,3117.2,3117.1,3.12945486]
[1641719167365,4.6881,3117.2,3117.1,1.0]
[1641719167666,4.6881,3117.2,3117.1,10.82960334]
[1641719167864,4.6881,3117.2,3117.1,12.45765872]
[1641719168364,4.6881,3117.2,3117.1,10.82960334]
[1641719171017,4.6881,3117.2,3117.1,8.65]
[1641719171418,4.6881,3117.2,3117.1,10.7632564]
[1641719171717,4.6881,3117.2,3117.1,12.38519499]
[1641719172116,4.6881,3117.2,3117.1,10.27193859]
[1641719172319,4.6881,3117.2,3117.1,8.65]
[1641719172518,4.6881,3117.2,3117.1,10.799374]
[1641719173018,4.6881,3117.2,3117.1,12.42193162]
[1641719173218,4.6881,3117.2,3117.1,2.62255762]
[1641719173417,4.6881,3117.2,3117.1,1.62255762]
[1641719173670,4.6881,3117.2,3117.0,1.27512091]
[1641719173872,4.6881,3117.2,3117.0,1.03936363]
[1641719174472,4.6881,3117.2,3117.0,2.66182613]
[1641719174672,4.6881,3117.2,3117.0,1.66182613]
[1641719176172,4.6881,3117.2,3117.1,1.6224625]
[1641719178014,4.00351225,3117.2,3117.1,1.6224625]
[1641719178617,4.0023754,3117.2,3117.1,1.6224625]
[1641719179016,4.0023754,3117.2,3117.0,2.4450757]
[1641719179416,4.0023754,3117.2,3117.0,3.4450757]
[1641719179618,3.878958,3117.2,3117.1,1.62756593]
[1641719180917,3.878958,3117.2,3117.0,1.03936363]
[1641719181574,3.878958,3117.2,3117.1,1.62912902]
[1641719184577,3.878958,3117.2,3117.1,5.52912902]
[1641719185021,3.878958,3117.2,3117.1,1.62912902]
[1641719185419,3.878958,3117.2,3117.0,3.51315229]
[1641719185819,3.878958,3117.2,3117.0,5.63873376]
[1641719186020,3.878958,3117.2,3117.1,7.73611387]
[1641719186219,3.878958,3117.2,3117.1,5.6]
[1641719186821,3.878958,3117.2,3117.0,3.51315229]
[1641719187421,3.878958,3117.2,3117.0,1.10744022]
[1641719188020,3.878958,3117.2,3117.0,3.51315229]
[1641719188874,3.878958,3117.2,3117.0,5.64574795]
[1641719189272,3.878958,3117.2,3117.1,2.40571207]
[1641719189973,3.878958,3117.2,3117.0,2.4450757]
[1641719190774,3.878958,3117.2,3117.1,2.40571207]
[1641719191189,3.878958,3117.2,3117.0,0.03936363]
[1641719191782,3.878958,3117.2,3117.1,1.62630003]
[1641719192431,3.878958,3117.2,3117.0,2.4450757]
[1641719192432,4.66549083,3117.2,3117.0,2.4450757]
[1641719192623,5.46799083,3117.2,3117.0,2.4450757]
[1641719192927,3.04112459,3117.2,3117.0,1.66602217]
[1641719193826,3.84349999,3117.2,3117.0,1.66602217]
[1641719195728,3.84349999,3117.2,3117.1,1.62665854]
[1641719196969,3.04099999,3117.2,3117.1,1.62665854]
[1641719199573,2.79099999,3117.2,3117.1,1.62665854]
[1641719200030,2.79099999,3117.2,3117.0,1.66602217]
[1641719201629,2.79099999,3117.2,3117.1,1.62665854]
[1641719209929,2.79099999,3117.2,3117.0,0.03936363]
[1641719210330,3.59342999,3117.2,3117.0,0.03936363]
[1641719210728,3.59342999,3117.2,3117.1,1.62615962]
[1641719211566,2.79099999,3117.2,3117.1,1.62615962]
[1641719212369,2.79099999,3117.2,3117.0,0.03936363]
[1641719213070,2.79099999,3117.2,3117.1,1.62581082]
[1641719214673,2.79099999,3117.2,3117.0,2.4450757]
[1641719215526,3.59341999,3117.2,3117.0,2.4450757]
[1641719215926,3.59341999,3117.2,3117.1,1.62770184]
[1641719216127,2.79099999,3117.2,3117.1,1.62770184]
[1641719216527,2.79099999,3117.2,3117.0,0.03936363]
[1641719217128,2.79099999,3117.2,3117.0,2.4450757]
[1641719218532,2.79099999,3117.2,3117.1,11.47744601]
[1641719218774,2.79099999,3117.2,3117.0,2.4450757]
[1641719218983,2.79099999,3117.2,3117.1,2.40571207]
[1641719219974,3.32292647,3117.2,3117.0,2.4450757]
[1641719220877,3.32292647,3117.2,3117.0,0.03936363]
[1641719222178,3.32292647,3117.2,3117.0,2.4450757]
[1641719223417,3.32292647,3117.2,3117.0,0.03936363]
[1641719224016,3.32292647,3117.2,3117.0,2.4450757]
[1641719224717,3.32292647,3117.2,3117.0,0.03936363]
[1641719225618,3.32292647,3117.2,3117.0,2.4450757]
[1641719227768,2.79099999,3117.2,3117.0,2.4450757]
[1641719228868,2.79099999,3117.2,3117.0,2.18610255]
[1641719232519,1.15067731,3117.2,3117.0,2.18610255]
[1641719232921,0.00914776,3117.1,3117.0,2.18610255]
[1641719234971,0.00914776,3117.1,3117.0,5.55367255]
[1641719235173,0.00914776,3117.1,3117.0,3.18610255]
[1641719235972,0.00914776,3117.1,3117.0,4.20577178]
[1641719236172,1.15067731,3117.2,3117.1,14.8]
[1641719236372,1.15067731,3117.2,3117.1,15.1]
[1641719236573,1.15067731,3117.2,3117.1,16.1]
[1641719237732,1.15067731,3117.2,3117.1,16.12945204]
[1641719238030,1.15067731,3117.2,3117.1,16.93168204]
[1641719238229,1.15067731,3117.2,3117.1,20.19162827]
[1641719240031,1.15067731,3117.2,3117.1,16.93168204]
[1641719242870,1.15067731,3117.2,3117.1,16.92399392]
[1641719246024,0.8022088,3117.4,3117.1,20.18394015]
[1641719246224,0.8022088,3117.4,3117.2,2.95463825]
[1641719246424,0.00170527,3117.3,3117.2,1.80225]
[1641719246624,0.5783336,3117.3,3117.2,1.80225]
[1641719246829,0.5783336,3117.3,3117.2,0.80225]
[1641719247024,0.5783336,3117.3,3117.1,0.02176392]
[1641719247528,0.00113685,3117.2,3117.1,0.02176392]
[1641719250975,0.57460518,3117.3,3117.1,0.02176392]
[1641719251174,0.57460518,3117.3,3117.1,0.01043392]
[1641719251574,0.57460518,3117.3,3117.2,1.62944013]
[1641719252822,0.57460518,3117.3,3117.2,1.65741547]
[1641719253620,0.52971518,3117.3,3117.2,1.65741547]
[1641719254219,5.87971518,3117.3,3117.2,1.65591547]
[1641719254619,0.52971518,3117.3,3117.2,1.65591547]
[1641719255020,0.52971518,3117.3,3117.2,1.24985529]
[1641719255425,0.52971518,3117.3,3117.2,0.02647534]
[1641719257775,0.8024451,3117.2,3117.0,1.62944013]
[1641719257982,1.6048951,3117.2,3117.0,1.62944013]
[1641719258376,1.6048951,3117.2,3117.1,1.62944013]
[1641719262035,1.6048951,3117.2,3117.0,1.62944013]
[1641719262832,1.61490615,3117.2,3117.0,1.65726629]
[1641719263030,1.61490615,3117.2,3117.0,0.02782616]
[1641719264167,1.61490615,3117.2,3117.0,1.65726629]
[1641719265669,1.61490615,3117.2,3117.0,0.02782616]
[1641719266871,1.61490615,3117.2,3117.0,1.65726629]
[1641719267724,0.01000655,3117.1,3117.0,1.65726629]
[1641719268027,0.01000655,3117.1,3117.0,1.65840314]
[1641719271773,0.01000655,3117.1,3117.0,0.02896301]
[1641719272975,3.7140757,3117.3,3117.0,0.02896301]
[1641719273578,2.4073851,3117.2,3117.0,0.02896301]
[1641719275228,1.6048951,3117.2,3117.0,0.02896301]
[1641719277826,1.6048951,3117.2,3117.0,0.0529901]
[1641719279681,1.0948951,3117.2,3117.0,0.0529901]
[1641719279884,13.20998126,3117.1,3117.0,0.00113685]
[1641719280081,11.15,3117.1,3117.0,0.00113685]
[1641719280281,12.15,3117.1,3117.0,0.00113685]
[1641719280482,12.15,3117.1,3116.5,1.62944013]
[1641719280682,0.80269,3117.0,3116.5,1.62944013]
[1641719280881,0.80269,3117.0,3116.6,0.00227369]
[1641719281080,1.80269,3117.0,3116.6,0.00227369]
[1641719281281,0.80269,3117.0,3116.6,0.00227369]
[1641719281884,0.80269,3117.0,3116.3,0.00397896]
[1641719282083,0.802657,3116.8,3116.3,0.00397896]
[1641719282283,0.802657,3116.8,3116.3,1.63341909]
[1641719282284,2.407977,3116.8,3116.3,1.63341909]
[1641719282527,1.60532,3116.8,3116.3,1.63341909]
[1641719282729,1.60532,3116.8,3116.4,0.00341054]
[1641719282922,1.60532,3116.8,3116.4,1.63285067]
[1641719283322,0.70329772,3116.7,3116.5,0.00284211]
[1641719283722,1.50595472,3116.7,3116.5,0.00284211]
[1641719283922,2.30861472,3116.7,3116.5,0.00284211]
[1641719284123,2.30861472,3116.7,3116.4,1.53228224]
[1641719284324,2.30861472,3116.7,3116.3,1.53228224]
[1641719284922,2.30861472,3116.7,3116.0,3.62051118]
[1641719285122,2.30861472,3116.7,3116.1,1.06773762]
[1641719285323,2.30861472,3116.7,3116.1,1.07001132]
[1641719286174,2.30861472,3116.7,3116.1,2.07001132]
[1641719286376,2.30861472,3116.7,3116.1,5.3235225]
[1641719286578,2.30861472,3116.7,3116.2,2.45091118]
[1641719286977,2.30861472,3116.7,3116.3,0.00113685]
[1641719287677,2.31787501,3116.7,3116.3,0.80366685]
[1641719288076,2.31787501,3116.7,3116.3,4.25457803]
[1641719288278,2.31787501,3116.7,3116.3,3.25457803]
[1641719288579,2.31787501,3116.7,3116.3,2.45204803]
[1641719289779,3.92320501,3116.7,3116.3,0.00113685]
[1641719290226,3.92320501,3116.7,3116.3,1.22794886]
[1641719290627,55.6575565,3116.6,3116.3,1.22794886]
[1641719291025,55.6575565,3116.6,3116.4,1.22681201]
[1641719291428,3.92320501,3116.7,3116.4,1.22681201]
[1641719291429,2.31787501,3116.7,3116.4,1.22681201]
[1641719293781,2.31787501,3116.7,3116.5,1.22681201]
[1641719294983,2.31787501,3116.7,3116.4,1.22681201]
[1641719295183,2.31787501,3116.7,3116.5,1.22681201]
[1641719296283,2.31787501,3116.7,3116.4,1.22681201]
[1641719296986,2.31787501,3116.7,3116.6,1.22681201]
[1641719297439,2.31901185,3116.7,3116.6,1.22681201]
[1641719297633,2.31901185,3116.7,3116.3,1.63610435]
[1641719297634,2.31901185,3116.7,3116.5,1.22681201]
[1641719298237,2.31901185,3116.7,3116.6,1.22681201]
[1641719298536,2.31901185,3116.7,3116.5,1.22681201]
[1641719299538,3.12174185,3116.7,3116.5,1.22681201]
[1641719299739,3.12174185,3116.7,3116.3,1.22794886]
[1641719302484,2.31901185,3116.7,3116.3,1.22794886]
[1641719303683,3.12170185,3116.7,3116.3,1.22794886]
[1641719303983,2.31901185,3116.7,3116.3,1.22794886]
[1641719305328,3.12171185,3116.7,3116.3,1.22794886]
[1641719307129,0.3,3116.6,3116.3,1.22794886]
[1641719310576,0.3,3116.6,3116.3,1.16394886]
[1641719310777,0.3,3116.6,3116.2,1.16394886]
[1641719310977,0.00113684,3116.5,3116.2,1.16394886]
[1641719311180,0.80267,3116.4,3116.2,1.16394886]
[1641719312839,0.00925999,3116.3,3116.2,1.16394886]
[1641719313640,4.81715374,3116.5,3116.2,1.16394886]
[1641719313641,3.98823109,3116.5,3116.2,1.16394886]
[1641719314439,0.80267,3116.4,3116.2,1.16394886]
[1641719316278,1.60544,3116.4,3116.2,1.16394886]
[1641719316487,1.60544,3116.4,3116.1,5.26499505]
[1641719316488,2.40212628,3116.3,3116.1,5.26499505]
[1641719316683,14.613,3116.2,3116.1,5.26499505]
[1641719316881,16.65400282,3116.2,3116.0,100.0]
[1641719317082,20.35919365,3116.1,3116.0,55.9839417]
[1641719317280,18.02529365,3116.1,3116.0,0.69082161]
[1641719317480,18.02529365,3116.1,3115.4,1.6349675]
[1641719317481,0.3031,3115.8,3115.4,1.6349675]
[1641719317679,0.3031,3115.8,3115.2,2.53112118]
[1641719317680,1.1062211,3115.7,3115.3,1.3699994]
[1641719317879,1.1062211,3115.7,3115.5,0.00454739]
[1641719317880,0.3031,3115.7,3115.5,0.00454739]
[1641719318083,12.80933,3115.6,3115.5,0.00454739]
[1641719318281,12.80933,3115.6,3114.9,3.26234654]
[1641719318481,12.80933,3115.6,3114.8,10.3006]
[1641719318482,1.10623,3115.1,3114.8,10.3006]
[1641719318781,1.10623,3115.1,3114.9,0.00341054]
[1641719318981,1.10623,3115.1,3114.8,7.41201054]
[1641719319181,0.3031,3115.0,3114.8,7.41201054]
[1641719319781,0.463,3115.8,3114.9,16.95]
[1641719320033,0.463,3115.8,3114.8,8.21489054]
[1641719320230,0.00454739,3115.7,3114.8,7.41201054]
[1641719320429,0.00454739,3115.7,3114.9,2.80705047]
[1641719320632,0.00397897,3115.6,3115.0,1.6055]
[1641719320828,0.00397897,3115.6,3115.1,2.4181536]
[1641719321029,2.31297839,3115.9,3115.1,2.4181536]
[1641719321030,0.00341054,3115.5,3115.4,1.23253113]
[1641719322130,0.00341054,3115.5,3115.2,1.0]
[1641719322330,0.59956506,3115.5,3115.1,13.9344]
[1641719322529,0.00284212,3115.4,3115.1,13.9344]
[1641719322731,0.80295,3115.3,3115.1,13.9344]
[1641719322930,0.80522369,3115.3,3115.1,13.9344]
[1641719323133,0.00170527,3115.2,3115.1,13.9344]
[1641719325684,0.00170527,3115.2,3115.1,15.31648854]
[1641719326281,0.00170527,3115.2,3115.1,16.31648854]
[1641719326881,0.00170527,3115.2,3115.1,20.11648854]
[1641719327082,0.00170527,3115.2,3115.1,16.31648854]
[1641719327282,3.21081056,3115.5,3115.2,9.65]
[1641719327825,0.01081,3115.2,3115.1,16.31648854]
[1641719328025,0.01081,3115.2,3115.1,15.31648854]
[1641719328226,0.01081,3115.2,3115.1,16.94857795]
[1641719330126,0.01081,3115.2,3115.1,15.31648854]
[1641719330734,0.01081,3115.2,3115.1,16.94857795]
[1641719330926,0.09096,3115.2,3115.1,16.94857795]
[1641719331675,0.09096,3115.2,3115.1,15.31648854]
[1641719331975,0.09096,3115.2,3114.9,1.63208941]
[1641719331976,0.01081,3115.2,3114.9,1.63208941]
[1641719332176,0.09105,3115.2,3114.9,1.63208941]
[1641719332374,0.09105,3115.2,3115.0,0.00113685]
[1641719332575,0.01081,3115.2,3115.0,0.00113685]
[1641719332775,1.6863771,3115.3,3115.0,0.00113685]
[1641719332978,11.35302,3115.1,3115.0,0.00113685]
[1641719333176,13.6858053,3115.1,3115.0,0.00113685]
[1641719333577,14.6858053,3115.1,3115.0,0.00113685]
[1641719334177,14.9858053,3115.1,3115.0,0.00113685]
[1641719334377,14.9858053,3115.1,3114.9,0.00170527]
[1641719334378,0.67912566,3115.0,3114.9,0.00170527]
[1641719334578,14.10931759,3115.0,3114.9,0.00170527]
[1641719334778,14.87231759,3115.0,3114.9,0.00170527]
[1641719335031,13.57231759,3115.0,3114.9,0.00170527]
[1641719335230,14.87231759,3115.0,3114.9,0.00170527]
[1641719335429,14.05,3114.9,3114.8,1.63208941]
[1641719335628,14.05,3114.9,3113.5,4.5625]
[1641719335629,16.39654,3114.9,3114.2,1.63208941]
[1641719335829,1.22177397,3114.5,3114.2,1.63208941]
[1641719336031,0.77107515,3114.4,3114.3,0.00341054]
[1641719336829,5.82107515,3114.4,3114.3,0.00341054]
[1641719337029,5.82107515,3114.4,3114.1,0.00454739]
[1641719337231,7.42769765,3114.4,3114.1,0.00454739]
[1641719337430,0.80331,3114.3,3114.1,0.00454739]
[1641719337830,0.80331,3114.3,3114.0,9.73844739]
[1641719338683,11.30338,3114.1,3113.8,1.63208941]
[1641719338880,2.86084279,3114.0,3113.8,1.56808941]
[1641719339080,3.86084279,3114.0,3113.9,0.00113684]
[1641719339681,10.66084279,3114.0,3113.9,0.00113684]
[1641719340081,10.66084279,3114.0,3113.8,0.00170527]
[1641719340281,12.78492424,3113.9,3113.8,0.00170527]
[1641719340481,13.62820424,3113.9,3113.8,0.00170527]
[1641719340680,8.25,3113.8,3113.7,8.6848]
[1641719340882,12.70625105,3113.8,3113.7,8.6848]
[1641719341290,9.713,3113.8,3113.7,8.6848]
[1641719341781,2.16577885,3113.8,3113.7,8.6848]
[1641719342183,5.36577885,3113.8,3113.7,8.6848]
[1641719342435,8.17187836,3113.8,3113.7,8.6848]
[1641719342828,5.37659515,3113.8,3113.7,8.6848]
[1641719343629,13.82231608,3113.8,3113.7,8.6848]
[1641719344428,8.27231608,3113.8,3113.7,8.6848]
[1641719344928,9.11119065,3113.8,3113.7,8.6848]
[1641719345930,5.21546972,3113.8,3113.7,8.6848]
[1641719346578,8.86546972,3113.8,3113.7,8.6848]
[1641719347178,10.16546972,3113.8,3113.7,8.6848]
[1641719347578,6.51546972,3113.8,3113.7,8.6848]
[1641719347980,6.51546972,3113.8,3113.7,7.2388]
[1641719348380,9.20264728,3113.8,3113.7,7.2388]
[1641719348582,14.65264728,3113.8,3113.7,7.2388]
[1641719349280,8.20264728,3113.8,3113.7,7.1748]
[1641719350534,9.50264728,3113.8,3113.7,7.1748]
[1641719351539,14.20264728,3113.8,3113.7,7.1748]
[1641719351735,6.81546972,3113.8,3113.7,7.1748]
[1641719352343,4.51269087,3113.8,3113.7,7.1748]
[1641719352539,4.04969087,3113.8,3113.7,17.43183706]
[1641719352738,3.2108163,3113.8,3113.7,14.7748]
[1641719353784,0.51756528,3114.1,3113.8,12.25]
[1641719354186,0.00113685,3114.0,3113.9,15.87896399]
[1641719354587,0.94615351,3114.7,3114.0,5.2]
[1641719354786,39.59282779,3114.5,3114.0,7.62541506]
[1641719354990,0.00227369,3114.4,3114.0,7.62541506]
[1641719355389,0.00170527,3114.3,3114.0,7.62541506]
[1641719355788,0.50004392,3114.1,3114.0,7.62541506]
[1641719355988,0.00113685,3114.2,3114.0,7.62541506]
[1641719356191,0.00113685,3114.2,3114.1,2.33858662]
[1641719356389,0.00113685,3114.2,3114.1,12.68858662]
[1641719356992,0.00113685,3114.2,3114.1,2.33858662]
[1641719357192,0.56946214,3114.2,3114.0,1.21900545]
[1641719357628,1.37276744,3114.2,3114.0,1.21900545]
[1641719357828,1.37276744,3114.2,3114.1,0.0239496]
[1641719359528,1.37276744,3114.2,3113.8,1.1313]
[1641719359728,0.80336,3114.0,3113.8,1.1313]
[1641719359929,0.80336,3114.0,3113.7,8.35375505]
[1641719360127,0.80336,3114.0,3113.8,1.26141769]
[1641719360328,0.56946214,3114.2,3113.8,1.26255454]
[1641719360728,0.00113685,3114.2,3113.8,1.26255454]
[1641719362687,0.0108881,3114.2,3113.8,1.26255454]
[1641719362988,3.2108881,3114.2,3113.8,1.26255454]
[1641719363793,3.2108881,3114.2,3113.8,0.00113685]
[1641719364089,3.5108881,3114.2,3113.8,0.00113685]
[1641719364498,0.08021,3114.1,3113.8,0.00113685]
[1641719364942,0.88351,3114.1,3113.8,0.00113685]
[1641719366031,0.80335,3113.9,3113.8,0.00113685]
[1641719368031,0.0097543,3114.0,3113.8,0.00113685]
[1641719369886,0.0097543,3114.0,3113.9,1.22201754]
[1641719370889,0.0097543,3114.0,3113.8,1.22315439]
[1641719372531,0.8131223,3114.0,3113.8,1.22315439]
[1641719372731,0.8131223,3114.0,3113.9,1.22201754]
[1641719373330,0.8131223,3114.0,3113.8,0.00113685]
[1641719373730,1.6164823,3114.0,3113.8,0.00113685]
[1641719375832,1.6164823,3114.0,3113.9,1.22201754]
[1641719377076,1.6164823,3114.0,3113.8,0.00113685]
[1641719378278,1.6164823,3114.0,3113.8,1.62387906]
[1641719380239,0.8131143,3114.0,3113.8,1.62387906]
[1641719381436,1.6164434,3114.0,3113.8,1.62387906]
[1641719381837,0.8131143,3114.0,3113.8,1.62387906]
[1641719384922,0.8131143,3114.0,3113.9,1.62274221]
[1641719385823,0.8131143,3114.0,3113.8,1.62387906]
[1641719386022,0.8933243,3114.0,3113.8,1.62387906]
[1641719386423,1.60687,3113.9,3113.8,0.00113685]
[1641719386624,0.8131143,3114.0,3113.8,0.00113685]
[1641719387224,0.8131143,3114.0,3113.8,1.62387906]
[1641719387433,1.6164544,3114.0,3113.8,1.62387906]
[1641719389133,1.6164544,3114.0,3113.9,1.62274221]
[1641719389332,0.8131143,3114.0,3113.9,1.62274221]
[1641719390831,0.8131143,3114.0,3113.8,1.62274221]
[1641719391782,0.8131143,3114.0,3113.9,1.62274221]
[1641719394583,0.8131143,3114.0,3113.9,1.55874221]
[1641719395032,0.81316565,3114.1,3113.9,1.55874221]
[1641719395827,0.80342,3114.0,3113.9,1.55874221]
[1641719397834,0.81195179,3114.0,3113.9,1.55874221]
[1641719402195,0.00853179,3114.0,3113.9,1.55874221]
[1641719403542,0.00853179,3114.0,3113.7,9.62323314]
[1641719404135,0.00853179,3114.0,3113.7,12.00801972]
[1641719405338,0.00853179,3114.0,3113.9,2.44843314]
[1641719405538,0.00853179,3114.0,3113.9,4.8598653]
[1641719406183,0.00853179,3114.0,3113.9,5.8598653]
[1641719406384,0.00853179,3114.0,3113.9,3.41143216]
[1641719406582,3.2,3114.2,3113.9,2.41143216]
[1641719406781,3.2,3114.2,3113.9,3.21455216]
[1641719407781,3.2,3114.2,3113.9,3.23574398]
[1641719407981,3.2,3114.2,3114.0,2.45836805]
[1641719408787,3.2,3114.2,3114.1,2.45836805]
[1641719409384,3.2,3114.2,3114.0,2.45836805]
[1641719410036,3.2,3114.2,3114.1,1.63835292]
[1641719410833,4.00322,3114.2,3114.1,1.63835292]
[1641719411739,4.08343,3114.2,3114.1,1.63835292]
[1641719412033,11.83343,3114.2,3114.1,1.63835292]
[1641719412234,13.53523,3114.2,3114.0,1.63835292]
[1641719412432,14.58623,3114.2,3114.0,1.63835292]
[1641719412632,15.0896937,3114.2,3114.0,1.63835292]
[1641719412831,0.59393559,3114.1,3114.0,1.63835292]
[1641719413032,1.13714559,3114.1,3113.9,1.22897867]
[1641719413232,0.88355,3114.0,3113.9,1.22897867]
[1641719413434,1.34655,3114.0,3113.9,1.22897867]
[1641719414081,0.88355,3114.0,3113.8,1.63835292]
[1641719414481,1.18355,3114.0,3113.8,1.63835292]
[1641719414681,2.18355,3114.0,3113.8,1.63835292]
[1641719415082,1.18355,3114.0,3113.8,1.63835292]
[1641719415286,1.98696,3114.0,3113.7,8.81315292]
[1641719415483,1.10341,3113.9,3113.7,8.81315292]
[1641719415684,0.08021,3113.8,3113.7,8.81315292]
[1641719415885,0.08021,3113.8,3113.7,7.1748]
[1641719416084,0.08021,3113.8,3113.7,7.17650527]
[1641719417189,0.8836,3113.9,3113.7,7.17650527]
[1641719417440,0.80341,3113.9,3113.7,8.81485819]
[1641719417628,0.80341,3113.9,3113.8,0.00113685]
[1641719417828,1.10341,3113.9,3113.8,0.00113685]
[1641719418829,5.35341,3113.9,3113.8,0.00113685]
[1641719419230,9.91906452,3113.9,3113.8,0.00113685]
[1641719419429,9.91906452,3113.9,3113.4,2.45836805]
[1641719419430,5.35,3113.7,3113.4,2.45836805]
[1641719419631,2.15053,3113.6,3113.4,2.45836805]
[1641719419831,13.854225,3113.6,3113.5,0.00170527]
[1641719420028,13.854225,3113.6,3113.4,2.45836805]
[1641719420029,8.1,3113.5,3113.4,4.10554152]
[1641719420230,10.93425696,3113.5,3113.4,4.10554152]
[1641719420433,6.7,3113.4,3113.0,2.45836805]
[1641719420731,0.80382,3113.2,3113.1,0.00227369]
[1641719420930,0.80382,3113.2,3112.8,3.27782407]
[1641719420931,2.91703,3113.2,3112.8,3.27782407]
[1641719421185,1.08024,3113.1,3112.7,2.45715819]
[1641719421391,1.91931288,3113.1,3112.9,0.00113685]
[1641719421591,2.11281647,3113.0,3112.8,0.00170527]
[1641719421783,2.11281647,3113.0,3112.7,2.39486346]
[1641719421984,0.8036726,3112.9,3112.6,8.3005]
[1641719422188,1.30900647,3113.0,3112.6,8.3005]
[1641719422385,52.44380122,3112.7,3112.6,8.3005]
[1641719422791,52.44380122,3112.7,3112.6,8.23763685]
[1641719423390,54.54761302,3112.7,3112.6,8.23763685]
[1641719423587,58.30862375,3112.7,3112.6,8.23763685]
[1641719424191,56.25919302,3112.7,3112.6,0.00113685]
[1641719424389,55.95919302,3112.7,3112.6,0.00113685]
[1641719424588,55.95919302,3112.7,3112.5,0.00170527]
[1641719424787,0.80375,3112.6,3112.5,0.00170527]
[1641719426136,0.80375,3112.6,3112.3,0.00284212]
[1641719426335,58.85919302,3112.7,3112.3,0.00284212]
[1641719426336,0.62684556,3112.5,3112.3,0.00284212]
[1641719426536,0.80374,3112.4,3112.3,0.00284212]
[1641719426840,0.80374,3112.4,3112.3,4.25284212]
[1641719427035,0.80374,3112.4,3112.3,0.00284212]
[1641719427642,2.23439556,3112.5,3112.3,0.00284212]
[1641719427838,2.23439556,3112.5,3112.3,0.02678913]
[1641719428238,2.23439556,3112.5,3112.4,0.0022737]
[1641719429078,0.62684556,3112.5,3112.4,0.0022737]
[1641719431281,2.23434556,3112.5,3112.4,0.0022737]
[1641719432629,2.53434556,3112.5,3112.4,0.0022737]
[1641719433231,1.73058556,3112.5,3112.4,0.0022737]
[1641719433629,1.73058556,3112.5,3112.2,7.93275814]
[1641719434030,1.43058556,3112.5,3112.2,7.93275814]
[1641719434230,1.43058556,3112.5,3112.2,7.18250914]
[1641719434432,0.80374,3112.5,3112.2,9.53982704]
[1641719434634,0.80374,3112.5,3112.2,7.18250914]
[1641719434837,0.80374,3112.5,3112.2,7.11850914]
[1641719435032,0.80374,3112.5,3112.4,1.22253743]
[1641719435233,2.36108161,3112.7,3112.4,1.22253743]
[1641719435433,2.66108161,3112.7,3112.3,1.22253743]
[1641719435633,0.00113685,3112.6,3112.3,1.22253743]
[1641719435835,0.80374,3112.5,3112.3,1.22253743]
[1641719436035,0.08021,3112.4,3112.2,5.89597171]
[1641719437289,1.18395,3112.5,3112.2,5.89597171]
[1641719437485,2.411582,3112.4,3112.2,5.89597171]
[1641719437687,2.42204481,3112.4,3112.2,5.89597171]
[1641719437885,1.61817481,3112.4,3112.2,5.89597171]
[1641719439485,1.60773,3112.3,3112.2,5.89597171]
[1641719439948,1.60773,3112.3,3112.2,5.89710855]
[1641719442342,0.81432281,3112.4,3112.2,5.89710855]
[1641719442545,0.81432281,3112.4,3112.2,4.45010855]
[1641719443542,0.81432281,3112.4,3112.2,4.38610855]
[1641719444185,0.01046281,3112.4,3112.2,4.38610855]
[1641719449138,0.81417281,3112.4,3112.2,4.38610855]
[1641719450839,0.01046281,3112.4,3112.2,4.38610855]
[1641719452087,0.01046281,3112.4,3112.3,1.22253743]
[1641719452886,0.01046281,3112.4,3112.2,5.60864598]
[1641719454589,0.81417281,3112.4,3112.2,5.60864598]
[1641719454790,0.81417281,3112.4,3112.3,1.22253743]
[1641719456037,1.61793041,3112.4,3112.2,5.60864598]
[1641719456637,1.61793041,3112.4,3112.3,1.22253743]
[1641719456837,0.81417281,3112.4,3112.3,1.22253743]
[1641719459789,0.81417281,3112.4,3112.2,4.16164598]
[1641719459987,0.89438281,3112.4,3112.2,4.16164598]
[1641719460187,0.09067281,3112.4,3112.2,4.16164598]
[1641719460389,0.01046281,3112.4,3112.2,4.16164598]
[1641719460991,0.01046281,3112.4,3112.3,1.63127878]
[1641719461192,0.03986174,3112.9,3112.4,19.05]
[1641719461390,0.03986174,3112.9,3112.5,0.463]
[1641719461591,0.00113685,3112.8,3112.5,3.49817]
[1641719461789,0.00119859,3112.9,3112.6,19.05]
[1641719461990,0.00119859,3112.9,3112.6,19.35113685]
[1641719462192,0.00119859,3112.9,3112.8,20.32435615]
[1641719462644,0.00119859,3112.9,3112.8,21.32435615]
[1641719462841,0.00119859,3112.9,3112.8,20.32435615]
[1641719463241,3.39042977,3113.8,3112.8,1.27435615]
[1641719463446,0.8035,3113.2,3112.8,1.27435615]
[1641719463643,0.08024,3113.1,3112.8,1.27435615]
[1641719463844,0.00170527,3113.1,3112.8,5.38088115]
[1641719464142,0.00113685,3113.0,3112.8,5.38088115]
[1641719464543,0.08248369,3113.2,3112.8,5.38088115]
[1641719464944,0.80353,3113.0,3112.8,5.38088115]
[1641719465144,0.80353,3113.0,3112.9,6.53830608]
[1641719465344,0.80353,3113.0,3112.9,1.63830608]
[1641719465545,0.80466685,3113.0,3112.9,1.63830608]
[1641719465744,0.00113685,3113.0,3112.9,1.63830608]
[1641719466182,0.00113685,3113.0,3112.8,2.91266223]
[1641719467585,0.00113685,3113.0,3112.8,3.72806229]
[1641719467784,0.01029243,3113.0,3112.9,0.02904813]
[1641719467985,0.01029243,3113.0,3112.9,20.07904813]
[1641719468384,0.01029243,3113.0,3112.9,19.07904813]
[1641719469186,0.01029243,3113.0,3112.9,4.13557313]
[1641719469685,0.01029243,3113.0,3112.9,1.66623455]
[1641719471237,0.01029243,3113.0,3112.9,10.81623455]
[1641719472735,0.01029243,3113.0,3112.9,9.15]
[1641719472936,0.01029243,3113.0,3112.8,2.94059195]
[1641719474193,0.01029243,3113.0,3112.9,1.63718642]
[1641719475188,0.01029243,3113.0,3112.9,16.28718642]
[1641719475388,0.01029243,3113.0,3112.9,17.51473434]
[1641719475591,1.5677964,3113.2,3112.9,1.22754792]
[1641719475889,0.80354,3113.0,3112.9,1.22754792]
[1641719476090,0.80354,3113.0,3112.8,0.02904938]
[1641719476296,0.80354,3113.0,3112.8,5.7727608]
[1641719476892,0.11468465,3112.9,3112.8,5.7727608]
[1641719477092,0.11468465,3112.9,3112.8,0.02904938]